Cogmind - Beta 14 @@@ ROGUE MODE // 2025.03.06 @ 15:37:58 Player: DietSnapple Result: Self-destructed Performance ------------- Evolutions (1) 500 Regions Visited (3) 600 Robots Destroyed (21) 105 Value Destroyed (326) 326 Prototype IDs (0) 0 Alien Tech Used (0) 0 Bonus (0) 0 TOTAL SCORE: 1531 Bonus ------- None Cogmind --------- Core Integrity 365/400 Matter 300/300 Energy 250/250 System Corruption 0% Temperature Cool (0) Movement Walking (120) Location -9/Materials Parts ------- > --- POWER (1) -------- Ion Engine > --- PROPULSION (2) --- Aluminum Leg Aluminum Leg > --- UTILITY (4) ------ Small Storage Unit Seismic Detector > --- WEAPON (2) ------- Small Laser Light Assault Rifle > --- INVENTORY (8) ---- Light Ion Engine Light Ion Engine Wheel Wheel Light Assault Rifle Grenade Launcher Peak State ------------ > --- POWER ------------ Light Ion Engine > --- PROPULSION ------- Light Treads Light Treads > --- UTILITY ---------- Small Storage Unit Improved Terrain Scanner > --- WEAPON ----------- Small Laser Small Laser > --- INVENTORY -------- Light Ion Engine Aluminum Leg Aluminum Leg Wheel Wheel Small Laser [Rating: 9] Favorites ----------- Power Light Ion Engine Engine Light Ion Engine Propulsion Light Treads Treads Light Treads Leg Aluminum Leg Utility Small Storage Unit Device Seismic Detector Storage Small Storage Unit Weapon Small Laser Energy Gun Small Laser Ballistic Gun Light Assault Rifle Launcher Grenade Launcher Build | -11 -10 -10 -9 ------- Run | Yrd Mat Min Mat Slots Evolved 2 | . . . 2 Power . | . . . . Propulsion . | . . . . Utility 2 | . . . 2 Weapon . | . . . . Parts Attached 14 | 8 1 5 . Power 2 | 1 . 1 . Engine 2 | 1 . 1 . Core . | . . . . Reactor . | . . . . Propulsion 4 | 2 . 2 . Treads 2 | 2 . . . Leg 2 | . . 2 . Wheel . | . . . . Hover . | . . . . Flight . | . . . . Utility 3 | 3 . . . Device 2 | 2 . . . Storage 1 | 1 . . . Processor . | . . . . Hackware . | . . . . Protection . | . . . . Artifact . | . . . . Weapon 5 | 2 1 2 . Energy Gun 3 | 2 . 1 . Energy Cannon . | . . . . Ballistic Gun 1 | . . 1 . Ballistic Cannon . | . . . . Launcher 1 | . 1 . . Special Weapon . | . . . . Impact Weapon . | . . . . Slashing Weapon . | . . . . Piercing Weapon . | . . . . Special Melee Weapon . | . . . . Unidentified Prototypes . | . . . . Parts Lost 2 | . . 2 . Power . | . . . . Propulsion 1 | . . 1 . Utility . | . . . . Weapon 1 | . . 1 . Highest Loss Streak 2 | . . 2 . To Critical Strikes . | . . . . Average Slot Usage (%) 95 | . 100 95 77 Engine 13 | . 14 14 11 Treads 16 | . 28 4 . Leg 10 | . . 22 22 Device 13 | . 14 14 11 Storage 13 | . 14 14 11 Energy Gun 14 | . 15 14 11 Ballistic Gun 5 | . . 11 11 Launcher 6 | . 12 . . Peak Build Rating 9 | 9 7 7 7 Average Rating 6 | 5 7 6 7 On Entrance 5 | . 7 7 7 Naked Turns . | . . . . Heaviest Build 13 | 11 13 13 13 Greatest Support 40 | 40 40 40 20 Greatest Overweight (x) . | . . . . Average Overweight (x) . | . . . . Largest Inventory Capacity 8 | 8 8 8 8 Average Capacity 7 | 7 8 8 8 Most Carried 8 | 6 7 8 6 Average Carried 5 | 4 6 5 6 Final Capacity 8 | 8 8 8 8 Final Carried 7 | 6 7 6 6 Class Distribution -------------------- 100% | Mutant Dominant Class ---------------- Mutant | -10/Materials Mutant | -10/Mines Mutant | -9/Materials Resources | -11 -10 -10 -9 ----------- Run | Yrd Mat Min Mat Matter Collected 352 | 236 54 55 7 Remotely . | . . . . Salvage Created 645 | 201 145 228 71 Parts 42 | 14 11 13 4 Haulers Intercepted . | . . . . Recyclers Shooed 2 | 1 . 1 . Parts Field Recycled . | . . . . Retrieved Matter . | . . . . Parts Self-Destructed . | . . . . Prevented . | . . . . Kills | -11 -10 -10 -9 ------- Run | Yrd Mat Min Mat Combat Hostiles Destroyed 12 | . 5 5 2 Guns 11 | . 5 4 2 Classes Destroyed 5 | 3 2 . . Worker 2 | 1 1 . . Tunneler 5 | 5 . . . Recycler 2 | 1 . 1 . Swarmer 6 | . 3 3 . Grunt 6 | . 2 2 2 Best Kill Streak 3 | 3 3 3 1 Combat Bots Only 3 | . 3 3 1 Max Kills in Single Turn 1 | 1 1 1 1 Gunslinging . | . . . . Exploded . | . . . . Melee . | . . . . Uniques/NPCs Destroyed . | . . . . Combat | -11 -10 -10 -9 -------- Run | Yrd Mat Min Mat Hostile Shots Fired 104 | . 38 43 23 Missed 37 | . 15 11 11 Damage Taken 750 | . 235 368 147 Core 145 | . 12 98 35 Absorbed by Shields . | . . . . Core Remaining (%) 78 | 100 . 56 . Volleys Fired 80 | 17 23 29 11 Largest 2 | 2 1 2 2 Hottest 80 | 80 40 60 60 Shots Fired 113 | 34 23 34 22 Gun 113 | 34 23 34 22 Cannon . | . . . . Launcher . | . . . . Special . | . . . . Kinetic 16 | . . 5 11 Thermal 97 | 34 23 29 11 Explosive . | . . . . Electromagnetic . | . . . . Robot Hit Streak 14 | 6 6 10 14 Robot Miss Streak 3 | 3 3 3 2 Penetration Max . | . . . . Secondary Targets . | . . . . Shots Hit Robots 68 | 19 11 23 15 Core Hits 29 | 8 8 9 4 Critical Kills . | . . . . Critical Parts Destroyed . | . . . . Critical Strikes . | . . . . Melee Attacks . | . . . . Impact . | . . . . Slashing . | . . . . Piercing . | . . . . Sneak Attacks . | . . . . Combat Hostiles . | . . . . Follow-up Attacks . | . . . . Damage Inflicted 757 | 219 133 254 151 Guns 737 | 219 125 248 145 Cannons . | . . . . Explosions . | . . . . Melee . | . . . . Ramming 20 | . 8 6 6 Kinetic 86 | . . 18 68 Thermal 651 | 219 125 230 77 Explosive . | . . . . Electromagnetic . | . . . . Impact . | . . . . Slashing . | . . . . Piercing . | . . . . Highest Corruption . | . . . . Average Corruption . | . . . . Corruption Purged . | . . . . Corruption Blocked . | . . . . Overload Shots . | . . . . Overflow Damage . | . . . . Projectiles . | . . . . Explosions . | . . . . Melee . | . . . . Knockbacks . | . . . . Impact . | . . . . Kinetic . | . . . . Secondary . | . . . . Self-Inflicted Damage . | . . . . Shots . | . . . . Rammed 1 | . 1 . . Targets Rammed 6 | . 2 3 1 Kicked 4 | . . 3 1 Crushed 1 | . 1 . . Highest Temperature 153 | 90 24 153 34 Average Temperature 47 | 33 15 82 14 Received Heat Transfer 345 | . 96 171 78 Siege Activations . | . . . . Robots Corrupted . | . . . . Combat Hostiles . | . . . . Parts Fried . | . . . . Impact Corruptions . | . . . . Robots Melted 1 | . . 1 . Combat Hostiles 1 | . . 1 . Parts Melted 1 | . . 1 . Heat Transferred 1475 | 500 275 525 175 Parts Sabotaged . | . . . . Parts Stolen . | . . . . Parts Stripped . | . . . . Power Chain Reactions . | . . . . Alert | -11 -10 -10 -9 ------- Run | Yrd Mat Min Mat Peak Influence 162 | 35 162 125 148 Initial 48 | . 22 5 48 Average 62 | 12 79 69 81 Maximum Alert Level . | . . . . Low Security (%) 100 | 100 100 100 100 Level 1 . | . . . . Level 2 . | . . . . Level 3 . | . . . . Level 4 . | . . . . Level 5 . | . . . . High Security . | . . . . Max Security . | . . . . Squads Dispatched 1 | . 1 . . Investigation 1 | . 1 . . Extermination . | . . . . Reinforcement . | . . . . Assault . | . . . . Garrison . | . . . . Intercept . | . . . . Searches Triggered . | . . . . Construction Impeded . | . . . . Haulers Reinforced . | . . . . Active Scanning Responses . | . . . . Cargo Convoy Interrupts . | . . . . Stealth | -11 -10 -10 -9 --------- Run | Yrd Mat Min Mat Distress Signals . | . . . . Communications Jammed . | . . . . Distress Signals . | . . . . Times Spotted 25 | . 9 5 11 Peak Tracking Total 5 | . 3 3 5 Tactical Retreats 2 | . . . 2 Traps | -11 -10 -10 -9 ------- Run | Yrd Mat Min Mat Traps Triggered 1 | . 1 . . Indirectly . | . . . . Trap Hack Attempts . | . . . . Triggered . | . . . . Disarmed . | . . . . Reprogrammed . | . . . . Reused . | . . . . Traps Extracted . | . . . . Installed . | . . . . Triggered . | . . . . Machines | -11 -10 -10 -9 ---------- Run | Yrd Mat Min Mat Machines Disabled . | . . . . Max in Single Turn . | . . . . Machines Repaired . | . . . . Machines Dismantled . | . . . . Machines Sabotaged . | . . . . Overloaded Fab Kills . | . . . . Hacking | -11 -10 -10 -9 --------- Run | Yrd Mat Min Mat Machines Accessed . | . . . . Terminals . | . . . . Fabricators . | . . . . Repair Stations . | . . . . Recycling Units . | . . . . Scanalyzers . | . . . . Garrison Access . | . . . . Total Hacks . | . . . . Successful . | . . . . Failed . | . . . . Catastrophic . | . . . . Database Lockouts . | . . . . Manual . | . . . . Terminals . | . . . . Fabricators . | . . . . Repair Stations . | . . . . Recycling Units . | . . . . Scanalyzers . | . . . . Garrison Access . | . . . . Terminal Hacks . | . . . . Fabricator Hacks . | . . . . Repair Station Hacks . | . . . . Recycling Unit Hacks . | . . . . Scanalyzer . | . . . . Garrison Access Hacks . | . . . . Unauthorized Hacks . | . . . . Terminals . | . . . . Fabricators . | . . . . Repair Stations . | . . . . Recycling Units . | . . . . Scanalyzers . | . . . . Garrison Access . | . . . . Data Cores Recovered . | . . . . Used . | . . . . Hacking Detections . | . . . . Full Trace Events . | . . . . Feedback Events . | . . . . Feedback Blocked . | . . . . Robot Schematics Acquired . | . . . . Robots Built . | . . . . Authchips . | . . . . Time . | . . . . Total Robot Build Rating . | . . . . Part Schematics Acquired . | . . . . Parts Built . | . . . . Authchips . | . . . . Time . | . . . . Total Part Build Rating . | . . . . Parts Repaired . | . . . . Time . | . . . . Parts Recycled . | . . . . Recycled Matter . | . . . . Retrieved Matter . | . . . . Retrieved Components . | . . . . Parts Scanalyzed . | . . . . Part Schematics Acquired . | . . . . Parts Damaged . | . . . . Bothacking | -11 -10 -10 -9 ------------ Run | Yrd Mat Min Mat Used RIF Installer . | . . . . Robots Hacked . | . . . . Non-combat . | . . . . Combat . | . . . . Robot Hacks Applied . | . . . . Relay Couplers Released . | . . . . Fabnet Peak Effective % . | . . . . Robots Rewired . | . . . . Allies Hacked . | . . . . Hacks Repelled . | . . . . Allies | -11 -10 -10 -9 -------- Run | Yrd Mat Min Mat Total Allies . | . . . . Largest Group . | . . . . Highest-Rated Group . | . . . . Highest-Rated Ally . | . . . . Total Orders . | . . . . Ally Attacks . | . . . . Total Damage . | . . . . Kills . | . . . . Allies Corrupted . | . . . . Allies Melted . | . . . . Intel | -11 -10 -10 -9 ------- Run | Yrd Mat Min Mat Robot Analysis Total . | . . . . Derelict Logs Recovered 1 | . . 1 . Drone Launches . | . . . . Drone Recoveries . | . . . . Exploration | -11 -10 -10 -9 ------------- Run | Yrd Mat Min Mat Turns Passed 1243 | 270 519 301 153 Spaces Moved 657 | 127 246 185 99 Core 1 | 1 . . . Treads 378 | 126 246 6 . Legs 278 | . . 179 99 Wheels . | . . . . Hover . | . . . . Flight . | . . . . Fastest Speed 50 | 50 160 120 120 Average Speed 142 | 159 160 121 120 Slowest Speed 160 | 160 160 160 120 Overloaded Moves . | . . . . Propulsion Burnouts . | . . . . Robots Hopped . | . . . . Cave-ins Triggered . | . . . . Exploration Rate (%) 21 | 6 36 35 10 Regions Visited 3 Branch Regions 1 Pre-discovered Areas 1 | . . 1 . Known Exits Taken . | . . . . Unknown Exits Taken 3 | 1 1 1 . Scrap Searched 1 | . . 1 . Spaces Dug . | . . . . Terrain Destroyed . | . . . . Melee . | . . . . Projectile . | . . . . AOE . | . . . . Terrain Rammed . | . . . . Walls Destroyed . | . . . . Machines Disabled . | . . . . Actions | -11 -10 -10 -9 --------- Run | Yrd Mat Min Mat Total 845 | 157 347 228 113 Wait 80 | . 75 3 2 Move 654 | 126 245 184 99 Hop . | . . . . Pick Up 9 | 6 1 2 . Fast Attach 7 | 7 . . . Attach 4 | . . 4 . Detach . | . . . . Swap 3 | 1 1 1 . Drop 2 | . . 2 . Fire 80 | 17 23 29 11 Melee . | . . . . Ram . | . . . . Kick 4 | . . 3 1 Crush 2 | . 2 . . Escape Stasis . | . . . . Rewire . | . . . . Trap . | . . . . Miscellaneous . | . . . . Route ------- -11/Scrapyard -10/Materials (discovered 2 exits: [*Min x2]) -10/Mines -9/Materials (discovered 1 exit: [*Sto]) History --------- Turn | Location | Event 11 | -11/Scrapyard | Discovered new exit (range 14) 271 | -11/Scrapyard | Entered Materials 303 | -10/Materials | Build established: Mutant 728 | -10/Materials | Discovered new exit (range 15) 736 | -10/Materials | Discovered new exit (range 8) 790 | -10/Materials | Entered Mines 906 | -10/Mines | Discovered new exit (range 7) 946 | -10/Mines | Learned location of Zion (-7) 1091 | -10/Mines | Entered Materials 1091 | -9/Materials | Evolved 2 slots: Utility x2 1091 | -9/Materials | Discovered new exit (range 14) 1244 | -9/Materials | Self-destructed Last Messages --------------- 01000_ Acquired 1 matter. 01012_ R-06 Scavenger collects Flight Unit. 01016_ Acquired Lgt. Assault Rifle. 01016_ R-06 Scavenger collects Lgt. Assault Rifle. 01019_ R-06 Scavenger collects Lgt. Ion Engine. 01023_ Kicked R-06 Scavenger out of the way. 01024_ Kicked R-06 Scavenger. 01025_ Kicked R-06 Scavenger out of the way. 01027_ Acquired 1 matter. 01029_ R-06 Scavenger destroyed. 01030_ Acquired 1 matter. 01034_ K-01 Serf collects debris. PARAMETERS=UTILITY+2 LOCATION=UNKNOWN GOAL=ESCAPE 01091_ EXIT=FOUND 01147_ G-34 Mercenary destroyed. 01179_ Kicked T-07 Excavator. 01219_ G-34 Mercenary destroyed. 01226_ Acquired 7 matter. Map ----- +----------------------------------------------------+ | ????# < #????????????????????????? | | ????# #????????????????????????? | | ######### ####### #????????????????????????? | | *== # #########+##?????????????????????????? | | *== # #= ?????????????????????????? | | *= + *+%""" ""???????????????????????????? | | # # """ ! ""???????????????????????????? | | # # "S ""???????????????????????????? | | # # """ #????????????????????????? | | # # "" = ?#???????????????????????? | | # # !?? ???????????????????????? | | # ##########??# #??????????????????????? | | ######### ############# #??????????????????????? | | ????????# #??????????????????????? | | ????????# #??????????????????????? | | ????????# #??????????????????????? | | ????????########## ###+## #??????????????????????? | | ?????????????????# #????# #??????????????????????? | | ?????????????????# #????# #??????????????????????? | | ?????????????????# #????# #??????????????????????? | | ?????????????????# #????# #??????????????????????? | | ?????????????????# #????# #??????????????????????? | | ?????????????????# #????# #??????????????????????? | | ?????????????????# #????# #??????????????????????? | | ?????????????????# #????#%#??????????????????????? | | ????? ############ ######@##?????????????????????? | | ??? # =*#?????????????????????? | | ??? # #?????????????????????? | | ??? # #?????????????????????? | | ???? ########### + #?????????????????????? | | ????????????????# # #?????????????????????? | | ????????????????# ########?????????????????????? | | ????????????????# #????????????????????????????? | | ????????????????# #????????????????????????????? | | ????????????????# #????????????????????????????? | | ????????????????# #????????????????????????????? | | ????????????????# #????????????????????????????? | | ????????????????# #????????????????????????????? | | ????????????????# #????????????????????????????? | | ????????????????# ?????????????????????????????? | | ????????????????# ?????????????????????????????? | | ????????????????# ?????????????????????????????? | | ????????????????# ?????????????????????????????? | | ????????????????# ?????????????????????????????? | | ????????????????# ?????????????????????????????? | | ????????????????? ?????????????????????????????? | | ?????????????????????????????????????????????????? | | ?????????????????????????????????????????????????? | | ?????????????????????????????????????????????????? | | ?????????????????????????????????????????????????? | +----------------------------------------------------+ Best States ------------- Heat Dissipation 28 Energy Generation 10 Energy Capacity 250 Matter Stores 300 Matter Capacity 300 Sight Range 16 Terrain Scan Range 16 Terrain Scan Density 10 Evasion (%) 55 Recoil Reduction 2 Item Schematics ----------------- None Robot Schematics ------------------ None Fabricated ------------ Nothing Alien Tech Used ----------------- None Achievements -------------- None Challenges ------------ None Game ------ Seed SuperdenseOpticalField Manual? 0 Play Time 00:10:38 Cumulative 5.3 hours Start 2025.03.05 @ 22:25:49 End 2025.03.06 @ 15:37:58 Sessions 2 Manual Loads 0 Difficulty Rogue Special Mode None Game No. 17 Rogue 10 Adventurer 7 Explorer 0 Win Type - Total 0 Types 0/0/0/0/0/0/0/0/0 Lore% 1 Gallery% 9 Achievement% 8 Wizard Run 0 Options --------- Layout 1 ASCII 0 Keyboard 0 Movement Vi Keybinds 0 Fullscreen 1 Font 24/Smallcaps Map View 76x35 Zoom Use 0% Tactical HUD 1 Map Filters NONE Filters NONE Steam 1 RUN: 531a65c9-2722-4fc8-8e81-b778d212c4c0